{"text_format":"3","workbook":"xlsx","n_sheets":1,"sheets":["Разходите За Стартиране"],"not_rendered":{"defined_names":1},"read":"whole","date_system":"1900"}

{"sheet":"Разходите За Стартиране","index":0,"n_rows":120,"n_cols":4,"rows_kept":120,"merged":[[1,1,1,3],[10,1,10,3],[17,1,17,3],[25,1,25,3],[34,1,34,3],[42,1,42,3],[50,1,50,3],[55,1,55,3],[57,1,57,3],[59,1,59,3],[60,1,60,3],[69,1,69,3],[76,1,76,3],[81,1,81,3],[82,1,82,3],[90,1,90,3],[102,1,102,3],[110,1,110,3],[115,1,115,3]]}
["РАЗХОДИТЕ ЗА СТАРТИРАНЕ",null,null,"ИМЕ НА ФИРМА, LTD"]
[null,"ИМАЙТЕ ПРЕДВИД, ПРЕДИ ДА ИЗПОЛЗВАТЕ ТОЗИ РАБОТЕН ЛИСТ\nПочти всеки, който някога е стартирал бизнес, е подценил разходите и след това се е сблъскал с опасността да работи с недостатъчно капиталови резерви. Ключът към избягването на този капан е да подходите по-подробно при своето изследване и планиране. Нашият шаблон за разходите при стартиране ще ви напътства в процеса.\n\nЗАПОЧНЕТЕ С ОЦЕНКА НА РАЗХОДИТЕ\nКакво ще ви струва да създадете и задвижите бизнеса си? Ключът към точността тук е вниманието към детайлите. За всяка категория разходи направете списък с всичко, което ще трябва да закупите. Това ще включва както материалните активи (например оборудване, наличности), така и услугите (например преустройство, застраховка). След това проверете къде можете да закупите тези стоки или услуги. Проучете повече от един доставчик; т.е.: магазин за сравнение. Не гледайте само цената; условията на плащане, доставката, надеждността и обслужването също са важни. "]
[]
[null,"РАЗХОДИТЕ ЗА СТАРТИРАНЕ"]
[null,"СГРАДИ/НЕДВИЖИМИ ИМОТИ"," ","СУМА"]
[null,"Покупна",null,{"v":0,"d":"0.00 лв."}]
[null,"Строителство",null,{"v":0,"d":"0.00 лв."}]
[null,"Преустройство",null,{"v":0,"d":"0.00 лв."}]
[null,"Други",null,{"v":0,"d":"0.00 лв."}]
[null,"Общо",null,{"$f":"SUBTOTAL(109,НедвижимиИмоти[СУМА])","v":{"v":0,"d":"0.00 лв."}}]
[]
[null,"Подобрения при наем"," ","СУМА"]
[null,"Елемент 1",null,{"v":0,"d":"0.00 лв."}]
[null,"Елемент 2",null,{"v":0,"d":"0.00 лв."}]
[null,"Елемент 3",null,{"v":0,"d":"0.00 лв."}]
[null,"Елемент 4",null,{"v":0,"d":"0.00 лв."}]
[null,"Общо",null,{"$f":"SUBTOTAL(109,Подобрения[СУМА])","v":{"v":0,"d":"0.00 лв."}}]
[]
[null,"СПИСЪК НА ОСНОВНОТО ОБОРУДВАНЕ"," ","СУМА"]
[null,"Мебели",null,{"v":0,"d":"0.00 лв."}]
[null,"Оборудване",null,{"v":0,"d":"0.00 лв."}]
[null,"Приспособления",null,{"v":0,"d":"0.00 лв."}]
[null,"Машини",null,{"v":0,"d":"0.00 лв."}]
[null,"Други",null,{"v":0,"d":"0.00 лв."}]
[null,"Общо",null,{"$f":"SUBTOTAL(109,Капитал[СУМА])","v":{"v":0,"d":"0.00 лв."}}]
[]
[null,"МЕСТОПОЛОЖЕНИЕ И АДМИНИСТРАТИВНИ РАЗХОДИ"," ","СУМА"]
[null,"Наем",null,{"v":0,"d":"0.00 лв."}]
[null,"Депозити за комунални услуги",null,{"v":0,"d":"0.00 лв."}]
[null,"Правни и счетоводни такси",null,{"v":0,"d":"0.00 лв."}]
[null,"Предплатена застраховка",null,{"v":0,"d":"0.00 лв."}]
[null,"Заплати преди отварянето ",null,{"v":0,"d":"0.00 лв."}]
[null,"Други",null,{"v":0,"d":"0.00 лв."}]
[null,"Общо",null,{"$f":"SUBTOTAL(109,АдминистративниРазходи[СУМА])","v":{"v":0,"d":"0.00 лв."}}]
[]
[null,"НАЛИЧНОСТ ЗА ОТВАРЯНЕТО"," ","СУМА"]
[null,"Категория 1",null,{"v":0,"d":"0.00 лв."}]
[null,"Категория 2",null,{"v":0,"d":"0.00 лв."}]
[null,"Категория 3",null,{"v":0,"d":"0.00 лв."}]
[null,"Категория 4",null,{"v":0,"d":"0.00 лв."}]
[null,"Категория 5",null,{"v":0,"d":"0.00 лв."}]
[null,"Общо",null,{"$f":"SUBTOTAL(109,НаличностОтваряне[СУМА])","v":{"v":0,"d":"0.00 лв."}}]
[]
[null,"РАЗХОДИ ЗА РЕКЛАМА И ПРОМОЦИИ"," ","СУМА"]
[null,"Реклама",null,{"v":0,"d":"0.00 лв."}]
[null,"Означения",null,{"v":0,"d":"0.00 лв."}]
[null,"Печат",null,{"v":0,"d":"0.00 лв."}]
[null,"Пътуване/развлечения",null,{"v":0,"d":"0.00 лв."}]
[null,"Други/допълнителни категории",null,{"v":0,"d":"0.00 лв."}]
[null,"Общо",null,{"$f":"SUBTOTAL(109,ПромоционалниРазходи[СУМА])","v":{"v":0,"d":"0.00 лв."}}]
[]
[null,"ДРУГИ РАЗХОДИ"," ","СУМА"]
[null,"Друг разход 1",null,{"v":0,"d":"0.00 лв."}]
[null,"Друг разход 2",null,{"v":0,"d":"0.00 лв."}]
[null,"Общо",null,{"$f":"SUBTOTAL(109,ДругиРазходи[СУМА])","v":{"v":0,"d":"0.00 лв."}}]
[]
[null,"Резерв за непредвидени случаи",null,{"v":0,"d":"0.00 лв."}]
[]
[null,"Работен капитал ",null,{"v":0,"d":"0.00 лв."}]
[]
[null,"ДОБАВЕТЕ РЕЗЕРВ ЗА НЕПРЕДВИДЕНИ СЛУЧАИ\nНе забравяйте да обясните в разказвателния текст как сте решили каква сума да оставите в този резерв. \n\nОПРЕДЕЛЕТЕ СВОЯ ПАРИЧЕН ПОТОК\nНе можете да отворите с празна банкова сметка. Трябва ви паричен буфер, за да посрещнете разходите, докато бизнесът потръгне. Евентуално трябва да предвидите 12-месечен паричен поток. Това е мястото, където ще получите приблизителната оценка за нужния ви работен капитал. За момента, или оставете този ред празен, или поставете грубо предположение. След като сте завършили паричния си поток, можете да се върнете и да въведете внимателно проучената сума.\n\nВЪВЕДЕТЕ СВОИТЕ ИЗТОЧНИЦИ НА КАПИТАЛ\nСега, след като сте направили оценка колко капитал ще ви е необходим, за да започнете, трябва да обърнете внимание на горната част на тази работен лист. Въведете сумите, които ще предоставите сами, колко ще получите от партньори или инвеститори и колко ще вземете назаем."]
[]
[null,"ИЗТОЧНИЦИ НА КАПИТАЛ"]
[null,"ИНВЕСТИЦИЯ НА СОБСТВЕНИЦИТЕ (ИМЕ И % СОБСТВЕНОСТ)"," ","СУМА"]
[null,"Вашето име и процент на собствеността",null,{"v":0,"d":"0.00 лв."}]
[null,"Друг инвеститор",null,{"v":0,"d":"0.00 лв."}]
[null,"Друг инвеститор",null,{"v":0,"d":"0.00 лв."}]
[null,"Друг инвеститор",null,{"v":0,"d":"0.00 лв."}]
[null,"Общо",null,{"$f":"SUBTOTAL(109,ИнвестицииНаСобствениците[СУМА])","v":{"v":0,"d":"0.00 лв."}}]
[]
[null,"БАНКОВИ ЗАЕМИ"," ","СУМА"]
[null,"Банка 1",null,{"v":0,"d":"0.00 лв."}]
[null,"Банка 2",null,{"v":0,"d":"0.00 лв."}]
[null,"Банка 3",null,{"v":0,"d":"0.00 лв."}]
[null,"Банка 4",null,{"v":0,"d":"0.00 лв."}]
[null,"Общо",null,{"$f":"SUBTOTAL(109,БанковиЗаеми[СУМА])","v":{"v":0,"d":"0.00 лв."}}]
[]
[null,"ДРУГИ ЗАЕМИ"," ","СУМА"]
[null,"Източник 1",null,{"v":0,"d":"0.00 лв."}]
[null,"Източник 2",null,{"v":0,"d":"0.00 лв."}]
[null,"Общо",null,{"$f":"SUBTOTAL(109,ДругиЗаеми[СУМА])","v":{"v":0,"d":"0.00 лв."}}]
[]
[null,"ОСИГУРЕТЕ ДОКАЗАТЕЛСТВО ЗА ОБЕЗПЕЧЕНИЕ\nАко ще използвате този план в подкрепа на молбата за банков заем, използвайте раздела в долната част, за да покажете какви активи се предлагат като гаранция за обезпечение на заема и оценка на стойността им. Бъдете готови да предложите някакви доказателства за вашите оценки на стойността на обезпеченията."]
[]
[null,"ОБОБЩЕНО ИЗВЛЕЧЕНИЕ"]
[null,"ИЗТОЧНИК НА КАПИТАЛ"," ","ОБЩИ СУМИ"]
[null,"Инвестиции на собствениците и други инвестиции",null,{"$f":"ИнвестицииНаСобствениците[[#Totals],[СУМА]]","v":{"v":0,"d":"0.00 лв."}}]
[null,"Банкови заеми",null,{"$f":"БанковиЗаеми[[#Totals],[СУМА]]","v":{"v":0,"d":"0.00 лв."}}]
[null,"Други заеми",null,{"$f":"ДругиЗаеми[[#Totals],[СУМА]]","v":{"v":0,"d":"0.00 лв."}}]
[null,"Общо",null,{"$f":"SUBTOTAL(109,ИзтичнициНаКапитала[ОБЩИ СУМИ])","v":{"v":0,"d":"0.00 лв."}}]
[]
[null,"РАЗХОДИТЕ ЗА СТАРТИРАНЕ"," ","ОБЩИ СУМИ"]
[null,"Сгради/недвижими имоти",null,{"$f":"НедвижимиИмоти[[#Totals],[СУМА]]","v":{"v":0,"d":"0.00 лв."}}]
[null,"Подобренията в наетите",null,{"$f":"Подобрения[[#Totals],[СУМА]]","v":{"v":0,"d":"0.00 лв."}}]
[null,"Основно оборудване",null,{"$f":"Капитал[[#Totals],[СУМА]]","v":{"v":0,"d":"0.00 лв."}}]
[null,"Местоположение/административни разходи",null,{"$f":"АдминистративниРазходи[[#Totals],[СУМА]]","v":{"v":0,"d":"0.00 лв."}}]
[null,"Наличност за отварянето",null,{"$f":"НаличностОтваряне[[#Totals],[СУМА]]","v":{"v":0,"d":"0.00 лв."}}]
[null,"Разходи за реклама/промоции",null,{"$f":"ПромоционалниРазходи[[#Totals],[СУМА]]","v":{"v":0,"d":"0.00 лв."}}]
[null,"Други разходи",null,{"$f":"ДругиРазходи[[#Totals],[СУМА]]","v":{"v":0,"d":"0.00 лв."}}]
[null,"Фонд за непредвидени случаи",null,{"$f":"SUM('Разходите За Стартиране'!$C$57)","v":{"v":0,"d":"0.00 лв."}}]
[null,"Работен капитал",null,{"$f":"SUM('Разходите За Стартиране'!$C$59)","v":{"v":0,"d":"0.00 лв."}}]
[null,"Общо",null,{"$f":"SUBTOTAL(109,РазходиЗаСтартиране[ОБЩИ СУМИ])","v":{"v":0,"d":"0.00 лв."}}]
[]
[null,"ГАРАНЦИИ И ОБЕЗПЕЧЕНИЕ НА ПРЕДЛОЖЕНИЕТО ЗА ЗАЕМ"]
[null,"ОБЕЗПЕЧЕНИЕ ЗА ЗАЕМИ","ОПИСАНИЕ","СТОЙНОСТ"]
[null,"Недвижим имот",null,{"v":0,"d":"0.00 лв."}]
[null,"Друго обезпечение",null,{"v":0,"d":"0.00 лв."}]
[null,"Друго обезпечение",null,{"v":0,"d":"0.00 лв."}]
[null,"Друго обезпечение",null,{"v":0,"d":"0.00 лв."}]
[null,"Общо",null,{"$f":"SUBTOTAL(109,Обезпечение[СТОЙНОСТ])","v":{"v":0,"d":"0.00 лв."}}]
[]
[null,"СОБСТВЕНИЦИ"," ","  "]
[null,"Тук е вашето име"]
[null,"Друг собственик"]
[null,"Друг собственик"]
[]
[null,"ГАРАНТИ ПО ЗАЕМА (РАЗЛИЧНИ ОТ СОБСТВЕНИЦИТЕ)"," ","  "]
[null,"Гарант на заема 1"]
[null,"Гарант на заема 2"]
[null,"Гарант на заема 3"]